[Event "36th Balaton IM 2018"]
[Site "Balatonlelle"]
[Date "2018.06.13"]
[Round "2.4"]
[White "Gorti, Akshita"]
[Black "McPhillips, Joseph"]
[Result "1/2-1/2"]
[ECO "A41"]
[WhiteElo "2258"]
[BlackElo "2399"]
[Annotator "ChessBase"]
[PlyCount "90"]
[EventDate "2018.06.12"]
[EventType "swiss"]
[EventCountry "HUN"]
[SourceTitle "playchess.com"]
[Source "ChessBase"]
[SourceQuality "1"]
[TimeControl "40/5400+30:1800+30"]

1. Nf3 {[%emt 0:00:05]} d6 {[%emt 0:01:13]} 2. d4 {[%emt 0:00:54]} Bg4 {[%emt 0:01:11]} 3. c4 {[%emt 0:00:43]} Nd7 {[%emt 0:01:17]} 4. e4 {[%emt 0:04:37]} e5 {[%emt 0:09:47]} 5. Be2 {[%emt 0:01:02]} g6 {[%emt 0:08:57]} 6. Nc3 {[%emt 0:02:56]} f6 {[%emt 0:15:54]} 7. O-O {[%emt 0:07:21]} c6 {[%emt 0:09:43]} 8. h3 {[%emt 0:06:16]} Bxf3 {[%emt 0:03:38]} 9. Bxf3 {[%emt 0:00:08]} Bh6 {[%emt 0:00:06]} 10. Bxh6 {[%emt 0:04:20]} Nxh6 {[%emt 0:00:02]} 11. Qd2 {[%emt 0:00:37]} Nf7 {[%emt 0:00:27]} 12. Be2 {[%emt 0:01:06]} a5 {[%emt 0:13:11]} 13. Rad1 {[%emt 0:01:55]} Qc7 {[%emt 0:01:33]} 14. Kh1 {[%emt 0:03:38]} Rd8 {[%emt 0:01:06]} 15. f4 {[%emt 0:07:46]} exd4 {[%emt 0:00:05]} 16. Qxd4 {[%emt 0:00:09]} Qb6 {[%emt 0:00:13]} 17. Qd2 {[%emt 0:02:31]} Nc5 {[%emt 0:00:10]} 18. Qd4 {[%emt 0:13:46]} Nd7 {[%emt 0:00:03]} 19. Qd2 {[%emt 0:02:09]} O-O {[%emt 0:00:55]} 20. Na4 {[%emt 0:04:48]} Qb4 {[%emt 0:10:06]} 21. Qc2 {[%emt 0:01:15]} Nc5 {[%emt 0:00:26]} 22. Nxc5 {[%emt 0:00:53]} dxc5 {[%emt 0:00:35]} 23. Bg4 {[%emt 0:11:08]} Rfe8 {[%emt 0:04:22]} 24. a3 {[%emt 0:06:02]} Qb6 {[%emt 0:00:05]} 25. Rxd8 {[%emt 0:01:11]} Qxd8 {[%emt 0:03:07]} 26. Rd1 {[%emt 0:04:35]} Qe7 {[%emt 0:02:05]} 27. Qc3 {[%emt 0:03:28]} Rd8 {[%emt 0:01:55]} 28. Rxd8+ {[%emt 0:01:11]} Qxd8 {[%emt 0:00:05]} 29. Be6 {[%emt 0:00:58]} Kg7 {[%emt 0:01:17]} 30. e5 {[%emt 0:03:32]} Qd1+ {[%emt 0:03:06]} 31. Kh2 {[%emt 0:00:05]} Qd4 {[%emt 0:00:02]} 32. exf6+ {[%emt 0:02:44]} Kxf6 {[%emt 0:00:02]} 33. Bxf7 {[%emt 0:01:53]} Kxf7 {[%emt 0:03:19]} 34. Qxd4 {[%emt 0:00:14]} cxd4 {[%emt 0:00:03]} 35. Kg3 {[%emt 0:00:15]} c5 {[%emt 0:04:05]} 36. Kf3 {[%emt 0:00:32]} a4 {[%emt 0:00:38]} 37. g4 {[%emt 0:00:17]} Kf6 {[%emt 0:01:42]} 38. Ke4 {[%emt 0:00:12]} Ke6 {[%emt 0:00:05]} 39. Kd3 {[%emt 0:00:24]} Ke7 {[%emt 0:01:07]} 40. Ke2 {[%emt 0:00:00]} Kd7 {[%emt 0:01:23]} 41. Kd3 {[%emt 0:06:18]} Kc7 {[%emt 0:10:34]} 42. Kd2 {[%emt 0:00:44]} Kc6 {[%emt 0:01:20]} 43. Kc2 {[%emt 0:02:11]} Kc7 {[%emt 0:01:08]} 44. Kd2 {[%emt 0:00:51]} Kc6 {[%emt 0:00:04]} 45. Kc2 {[%emt 0:00:05]} Kc7 {[%emt 0:00:30]} 1/2-1/2

[Event "36th Balaton IM 2018"]
[Site "Balatonlelle"]
[Date "2018.06.13"]
[Round "2.5"]
[White "Naumkin, Igor"]
[Black "Moksh Amit Doshi"]
[Result "1/2-1/2"]
[ECO "D87"]
[WhiteElo "2383"]
[BlackElo "2203"]
[Annotator "ChessBase"]
[PlyCount "63"]
[EventDate "2018.06.12"]
[EventType "swiss"]
[EventCountry "HUN"]
[SourceTitle "playchess.com"]
[Source "ChessBase"]
[SourceQuality "1"]
[TimeControl "40/5400+30:1800+30"]

1. d4 {[%emt 0:03:47]} Nf6 {[%emt 0:00:44]} 2. c4 {[%emt 0:00:11]} g6 {[%emt 0:00:07]} 3. Nc3 {[%emt 0:00:13]} d5 {[%emt 0:00:16]} 4. cxd5 {[%emt 0:00:06]} Nxd5 {[%emt 0:00:09]} 5. e4 {[%emt 0:00:07]} Nxc3 {[%emt 0:00:11]} 6. bxc3 {[%emt 0:00:19]} Bg7 {[%emt 0:00:07]} 7. Bc4 {[%emt 0:00:06]} c5 {[%emt 0:00:18]} 8. Ne2 {[%emt 0:00:14]} Nc6 {[%emt 0:00:08]} 9. Be3 {[%emt 0:00:08]} O-O {[%emt 0:00:08]} 10. O-O {[%emt 0:00:04]} Bg4 {[%emt 0:00:26]} 11. f3 {[%emt 0:00:27]} Bd7 {[%emt 0:00:06]} 12. Rb1 {[%emt 0:01:54]} Qc7 {[%emt 0:00:35]} 13. Qd2 {[%emt 0:00:52]} Rad8 {[%emt 0:00:29]} 14. Rfc1 {[%emt 0:01:51]} Bc8 {[%emt 0:01:06]} 15. Bh6 {[%emt 0:02:00]} Na5 {[%emt 0:08:51]} 16. Bb3 {[%emt 0:03:40]} e5 {[%emt 0:03:14]} 17. Bxg7 {[%emt 0:03:33]} Kxg7 {[%emt 0:00:10]} 18. f4 {[%emt 0:04:26]} Bg4 {[%emt 0:07:03]} 19. fxe5 {[%emt 0:08:28]} Bxe2 {[%emt 0:07:30]} 20. Qxe2 {[%emt 0:00:15]} cxd4 {[%emt 0:00:08]} 21. cxd4 {[%emt 0:00:53]} Qb6 {[%emt 0:00:10]} 22. Qf2 {[%emt 0:11:50]} Nxb3 {[%emt 0:05:42]} 23. Rxb3 {[%emt 0:00:20]} Qxd4 {[%emt 0:00:08]} 24. Qxd4 {[%emt 0:00:16]} Rxd4 {[%emt 0:00:08]} 25. Rxb7 {[%emt 0:00:07]} Rxe4 {[%emt 0:00:16]} 26. Rxa7 {[%emt 0:00:54]} Rxe5 {[%emt 0:00:07]} 27. a4 {[%emt 0:01:30]} Re2 {[%emt 0:03:00]} 28. Rf1 {[%emt 0:01:16]} Ra2 {[%emt 0:00:52]} 29. Rf2 {[%emt 0:01:28]} Ra1+ {[%emt 0:00:06]} 30. Rf1 {[%emt 0:00:05]} Ra2 {[%emt 0:00:04]} 31. Rf2 {[%emt 0:01:05]} Ra1+ {[%emt 0:00:06]} 32. Rf1 {[%emt 0:00:30]} 1/2-1/2

[Event "36th Balaton IM 2018"]
[Site "Balatonlelle"]
[Date "2018.06.14"]
[Round "3"]
[White "Nagy, Bence"]
[Black "Gorti, Akshita"]
[Result "1-0"]
[ECO "C17"]
[WhiteElo "2354"]
[BlackElo "2258"]
[Annotator "NA"]
[PlyCount "77"]
[EventDate "2018.06.12"]
[EventType "swiss"]
[EventCountry "HUN"]
[SourceTitle "playchess.com"]
[Source "ChessBase"]
[SourceQuality "1"]
[TimeControl "40/5400+30:1800+30"]

1. e4 {[%emt 0:00:03]} e6 {[%emt 0:00:40]} 2. d4 {[%emt 0:00:07]} d5 {[%emt 0:00:08]} 3. Nc3 {[%emt 0:00:18]} Bb4 {[%emt 0:00:09]} 4. e5 {[%emt 0:00:17]} c5 {[%emt 0:00:05]} 5. a3 {[%emt 0:00:22]} Ba5 {[%emt 0:00:20]} 6. b4 {[%emt 0:03:24]} cxd4 {[%emt 0:00:10]} 7. Nb5 {[%emt 0:01:17]} Bc7 {[%emt 0:00:38]} 8. f4 {[%emt 0:04:41]} Ne7 {[%emt 0:01:19]} 9. Bd3 {[%emt 0:00:56]} Bd7 {[%emt 0:02:08]} 10. Nxc7+ {[%emt 0:02:02]} Qxc7 {[%emt 0:00:09]} 11. a4 {[%emt 0:06:07]} Nbc6 {[%emt 0:08:21]} 12. Bd2 {[%emt 0:05:24]} a5 {[%emt 0:09:41]} 13. b5 {[%emt 0:01:03]} Nb4 {[%emt 0:00:12]} 14. Nf3 $14 {[%emt 0:05:22]} Qc5 {[%emt 0:02:49]} 15. O-O {[%emt 0:06:30]} h6 {[%emt 0:04:23]} 16. Kh1 {[%emt 0:04:47]} Rc8 {[%emt 0:02:48]} 17. Qe2 {[%emt 0:07:09]} O-O {[%emt 0:04:01]} 18. g4 {[%emt 0:11:16]} Rc7 {[%emt 0:12:20]} 19. Rg1 {[%emt 0:02:21]} Rfc8 {[%emt 0:05:25]} 20. g5 {[%emt 0:15:47]} h5 {[%emt 0:05:08]} 21. g6 {[%emt 0:01:23]} fxg6 {[%emt 0:07:31]} 22. Bxb4 {[%emt 0:01:32]} Qxb4 {[%emt 0:02:42]} 23. b6 {[%emt 0:05:49]} Rc3 {[%emt 0:08:33]} 24. Qg2 {[%emt 0:03:16]} Be8 {[%emt 0:02:23]} 25. Nh4 {[%emt 0:00:23]} Qxb6 {[%emt 0:06:25]} 26. Nxg6 {[%emt 0:02:01]} Nxg6 {[%emt 0:01:02]} 27. Bxg6 {[%emt 0:00:03]} Qc7 {[%emt 0:01:15]} 28. Bd3 {[%emt 0:00:46]} Qe7 {[%emt 0:04:34]} 29. Qf2 {[%emt 0:02:58]} R8c7 {[%emt 0:02:46]} 30. Rg5 {[%emt 0:00:40]} Ra3 {[%emt 0:02:45]} 31. Rag1 {[%emt 0:00:34]} Qf8 {[%emt 0:01:46]} 32. Qh4 {[%emt 0:02:46]} Rac3 {[%emt 0:02:37]} 33. f5 {[%emt 0:01:23]} exf5 {[%emt 0:01:05]} 34. Rxf5 {[%emt 0:01:00]} Qe7 {[%emt 0:00:15]} 35. Rfg5 {[%emt 0:00:46]} Qf8 {[%emt 0:00:45]} 36. Qh3 {[%emt 0:01:51]} R3c6 {[%emt 0:00:30]} 37. Rf1 {[%emt 0:00:31]} Rf7 {[%emt 0:00:36]} 38. Bf5 {[%emt 0:00:27]} Bd7 {[%emt 0:00:33]} 39. e6 {[%emt 0:00:18]} 1-0

[Event "36th Balaton IM 2018"]
[Site "Balatonlelle"]
[Date "2018.06.14"]
[Round "3"]
[White "Saber, Yasser"]
[Black "Gungl, Theo"]
[Result "1-0"]
[ECO "A04"]
[WhiteElo "2266"]
[BlackElo "2237"]
[Annotator "NA"]
[PlyCount "75"]
[EventDate "2018.06.12"]
[EventType "swiss"]
[EventCountry "HUN"]
[SourceTitle "playchess.com"]
[Source "ChessBase"]
[SourceQuality "1"]
[TimeControl "40/5400+30:1800+30"]

1. d3 {[%emt 0:00:14]} g6 {[%emt 0:00:44]} 2. g3 {[%emt 0:00:03]} Bg7 {[%emt 0:00:07]} 3. Bg2 {[%emt 0:00:06]} e5 {[%emt 0:00:12]} 4. Nf3 {[%emt 0:00:03]} Nc6 {[%emt 0:00:18]} 5. O-O {[%emt 0:00:05]} Nge7 {[%emt 0:00:09]} 6. e4 {[%emt 0:00:17]} O-O {[%emt 0:00:12]} 7. Nc3 {[%emt 0:00:17] LiveBook: 5 Games} d6 {[%emt 0:02:19]} 8. Be3 {[%emt 0:07:09]} Nd4 {[%emt 0:20:15]} 9. Ne2 {[%emt 0:01:27]} Nxf3+ {[%emt 0:25:47]} 10. Bxf3 {[%emt 0:00:04]} h6 {[%emt 0:00:36]} 11. Bg2 {[%emt 0:00:56]} Kh7 {[%emt 0:15:49]} 12. d4 $11 {[%emt 0:02:31]} b6 {[%emt 0:06:10]} 13. f4 {[%emt 0:07:00]} Ba6 {[%emt 0:03:54]} 14. Rf2 {[%emt 0:01:29]} c5 {[%emt 0:02:44]} 15. c3 {[%emt 0:09:50]} exd4 {[%emt 0:01:29]} 16. cxd4 {[%emt 0:00:16]} Bb7 {[%emt 0:00:44]} 17. Nc3 {[%emt 0:04:15]} f5 {[%emt 0:04:52]} 18. dxc5 {[%emt 0:00:26]} dxc5 {[%emt 0:05:12]} 19. Rd2 {[%emt 0:01:20]} Qe8 {[%emt 0:01:05]} 20. e5 {[%emt 0:05:30]} Bxg2 {[%emt 0:00:07]} 21. Kxg2 {[%emt 0:00:25]} Rd8 {[%emt 0:00:10]} 22. Rxd8 {[%emt 0:03:49]} Qxd8 {[%emt 0:00:00]} 23. Qf3 {[%emt 0:00:09]} Qb8 {[%emt 0:02:57]} 24. Rd1 {[%emt 0:03:27]} Rd8 {[%emt 0:00:47]} 25. Rxd8 {[%emt 0:00:02]} Qxd8 {[%emt 0:00:00]} 26. Qb7 {[%emt 0:00:10]} Kg8 {[%emt 0:02:55]} 27. Kf2 {[%emt 0:02:04]} Bf8 {[%emt 0:02:05]} 28. Qxa7 {[%emt 0:02:45]} Nc6 {[%emt 0:00:58]} 29. Qb7 {[%emt 0:01:15]} Nb4 {[%emt 0:00:15]} 30. a3 {[%emt 0:11:39]} Nd3+ {[%emt 0:00:43]} 31. Ke2 {[%emt 0:00:02]} Nxb2 {[%emt 0:00:41]} 32. Nd5 {[%emt 0:00:02]} Bg7 {[%emt 0:01:37]} 33. e6 {[%emt 0:00:01]} Qe8 {[%emt 0:00:20]} 34. Qd7 {[%emt 0:04:35]} Kf8 {[%emt 0:00:32]} 35. Nxb6 {[%emt 0:02:36]} Bd4 {[%emt 0:00:34]} 36. Nc8 {[%emt 0:06:44]} Nc4 {[%emt 0:00:34]} 37. e7+ {[%emt 0:00:07]} Kf7 {[%emt 0:00:03]} 38. Qd5+ {[%emt 0:00:10]} 1-0

[Event "36th Balaton IM 2018"]
[Site "Balatonlelle"]
[Date "2018.06.14"]
[Round "3"]
[White "Urh, Zala"]
[Black "Vegh, Endre"]
[Result "0-1"]
[ECO "B09"]
[WhiteElo "2248"]
[BlackElo "2260"]
[Annotator "NA"]
[PlyCount "58"]
[EventDate "2018.06.12"]
[EventType "swiss"]
[EventCountry "HUN"]
[SourceTitle "playchess.com"]
[Source "ChessBase"]
[SourceQuality "1"]
[TimeControl "40/5400+30:1800+30"]

1. e4 {[%emt 0:00:05]} d6 {[%emt 0:07:06]} 2. d4 {[%emt 0:01:45]} Nf6 {[%emt 0:00:33]} 3. Nc3 {[%emt 0:00:36]} g6 {[%emt 0:03:28]} 4. f4 {[%emt 0:02:43]} Bg7 {[%emt 0:00:29]} 5. Bd3 {[%emt 0:01:46]} O-O {[%emt 0:02:03]} 6. Nf3 {[%emt 0:03:29]} Na6 {[%emt 0:00:38]} 7. e5 {[%emt 0:09:37]} Nd7 {[%emt 0:01:52]} 8. Qe2 {[%emt 0:06:35]} c5 {[%emt 0:04:13]} 9. dxc5 {[%emt 0:21:14]} Naxc5 {[%emt 0:01:04]} 10. O-O {[%emt 0:01:02]} dxe5 {[%emt 0:01:06]} 11. fxe5 {[%emt 0:00:30]} Nxe5 {[%emt 0:01:40]} 12. Nxe5 {[%emt 0:07:22]} Qd4+ {[%emt 0:00:14]} 13. Be3 {[%emt 0:00:20]} Qxe5 {[%emt 0:00:14]} 14. Bc4 {[%emt 0:01:01]} Be6 {[%emt 0:08:14]} 15. Rae1 {[%emt 0:03:01]} b6 {[%emt 0:07:11]} 16. Bxe6 {[%emt 0:08:44]} Nxe6 {[%emt 0:00:25]} 17. Qg4 {[%emt 0:01:32]} Qa5 {[%emt 0:10:22]} 18. Bd2 {[%emt 0:06:44]} Rad8 {[%emt 0:04:15]} 19. Rd1 {[%emt 0:09:22]} Qc5+ {[%emt 0:08:59]} 20. Kh1 {[%emt 0:00:13]} Qc6 {[%emt 0:01:00]} 21. Rf2 {[%emt 0:04:16]} Rd4 {[%emt 0:01:53]} 22. Qe2 {[%emt 0:02:21]} Rfd8 {[%emt 0:02:33]} 23. Qe3 {[%emt 0:02:52]} Bf6 {[%emt 0:02:02]} 24. Qf3 {[%emt 0:02:35]} Qxf3 {[%emt 0:03:41]} 25. gxf3 {[%emt 0:00:01]} Bh4 {[%emt 0:04:16]} 26. Re2 {[%emt 0:00:12]} R4d7 {[%emt 0:01:52]} 27. Nb1 {[%emt 0:01:03]} Nd4 {[%emt 0:01:07]} 28. Re3 {[%emt 0:01:53]} Bg5 {[%emt 0:03:24]} 29. Rd3 {[%emt 0:00:41]} Nxc2 {[%emt 0:00:57]} 0-1

[Event "36th Balaton IM 2018"]
[Site "Balatonlelle"]
[Date "2018.06.14"]
[Round "3"]
[White "Moksh Amit Doshi"]
[Black "Klaric, Zlatko"]
[Result "1-0"]
[ECO "C61"]
[WhiteElo "2203"]
[BlackElo "2397"]
[Annotator "ChessBase"]
[PlyCount "97"]
[EventDate "2018.06.12"]
[EventType "swiss"]
[EventCountry "HUN"]
[SourceTitle "playchess.com"]
[Source "ChessBase"]
[SourceQuality "1"]
[TimeControl "40/5400+30:1800+30"]

1. e4 {[%emt 0:00:06]} e5 {[%emt 0:00:36]} 2. Nf3 {[%emt 0:00:08]} Nc6 {[%emt 0:00:05]} 3. Bb5 {[%emt 0:00:35]} Nd4 {[%emt 0:00:19]} 4. Nxd4 {[%emt 0:00:31]} exd4 {[%emt 0:00:08]} 5. O-O {[%emt 0:02:43]} c6 {[%emt 0:00:05]} 6. Bc4 {[%emt 0:01:12]} Nf6 {[%emt 0:00:19]} 7. d3 {[%emt 0:08:45]} d6 {[%emt 0:00:23]} 8. Nd2 {[%emt 0:03:03]} Be7 {[%emt 0:01:54]} 9. Nf3 {[%emt 0:04:40]} Bg4 {[%emt 0:00:58]} 10. h3 {[%emt 0:02:00]} Bxf3 {[%emt 0:00:12]} 11. Qxf3 {[%emt 0:00:07]} O-O {[%emt 0:00:07]} 12. Bb3 {[%emt 0:12:13]} a5 {[%emt 0:04:09]} 13. a4 {[%emt 0:07:34]} Nd7 {[%emt 0:02:34]} 14. c3 {[%emt 0:00:54]} Nc5 {[%emt 0:02:12]} 15. Bc2 {[%emt 0:01:49]} Bf6 {[%emt 0:00:56]} 16. Bd2 {[%emt 0:04:33]} b5 {[%emt 0:03:11]} 17. e5 {[%emt 0:09:13]} Bxe5 {[%emt 0:08:44]} 18. Qxc6 {[%emt 0:00:15]} bxa4 {[%emt 0:00:25]} 19. Qd5 {[%emt 0:02:26]} Qb6 {[%emt 0:07:36]} 20. Rfb1 {[%emt 0:18:09]} Nb3 {[%emt 0:04:41]} 21. Bxb3 {[%emt 0:00:07]} axb3 {[%emt 0:03:25]} 22. c4 {[%emt 0:00:12]} a4 {[%emt 0:02:18]} 23. Ra3 {[%emt 0:00:07]} Ra7 {[%emt 0:00:40]} 24. Rba1 {[%emt 0:00:10]} Rfa8 {[%emt 0:22:10]} 25. Rxa4 {[%emt 0:00:26]} h6 {[%emt 0:00:08]} 26. Qxa8+ {[%emt 0:00:55]} Rxa8 {[%emt 0:00:07]} 27. Rxa8+ {[%emt 0:00:05]} Kh7 {[%emt 0:00:03]} 28. R8a5 {[%emt 0:02:46]} g5 {[%emt 0:06:02]} 29. Rb5 {[%emt 0:02:11]} Qc6 {[%emt 0:01:27]} 30. Ra7 {[%emt 0:03:07]} Qe8 {[%emt 0:02:26]} 31. Rxb3 {[%emt 0:01:54]} Qe6 {[%emt 0:05:44]} 32. Rbb7 {[%emt 0:00:54]} Kg6 {[%emt 0:03:45]} 33. Rxf7 {[%emt 0:01:28]} Bf6 {[%emt 0:00:11]} 34. Kf1 {[%emt 0:04:55]} Qf5 {[%emt 0:13:14]} 35. Ke2 {[%emt 0:00:10]} Qe5+ {[%emt 0:00:05]} 36. Kd1 {[%emt 0:00:31]} Qf5 {[%emt 0:01:02]} 37. Kc2 {[%emt 0:00:44]} Qxf2 {[%emt 0:00:22]} 38. b4 {[%emt 0:03:04]} Qxg2 {[%emt 0:02:26]} 39. b5 {[%emt 0:00:14]} d5 {[%emt 0:02:46]} 40. c5 {[%emt 0:00:00]} Be5 {[%emt 0:01:32]} 41. c6 {[%emt 0:02:29]} Bg3 {[%emt 0:12:32]} 42. Rae7 {[%emt 0:08:39]} Qxh3 {[%emt 0:03:29]} 43. Rf3 {[%emt 0:03:59]} Qh1 {[%emt 0:04:13]} 44. Rxg3 {[%emt 0:00:06]} Qa1 {[%emt 0:00:08]} 45. Rb7 {[%emt 0:00:40]} Qa4+ {[%emt 0:01:44]} 46. Kb2 {[%emt 0:00:07]} Qd1 {[%emt 0:00:39]} 47. Rg2 {[%emt 0:00:17]} Qf3 {[%emt 0:00:53]} 48. c7 {[%emt 0:00:25]} Qxg2 {[%emt 0:00:29]} 49. Kc2 {[%emt 0:00:10]} 1-0

[Event "36th Balaton IM 2018"]
[Site "Balatonlelle"]
[Date "2018.06.15"]
[Round "4"]
[White "Gorti, Akshita"]
[Black "Saber, Yasser"]
[Result "1-0"]
[ECO "A88"]
[WhiteElo "2258"]
[BlackElo "2266"]
[Annotator "NA"]
[PlyCount "99"]
[EventDate "2018.06.12"]
[EventType "swiss"]
[EventCountry "HUN"]
[SourceTitle "playchess.com"]
[Source "ChessBase"]
[SourceQuality "1"]
[TimeControl "40/5400+30:1800+30"]

1. d4 {[%emt 0:00:04]} d6 {[%emt 0:01:32]} 2. Nf3 {[%emt 0:00:16]} g6 {[%emt 0:00:13]} 3. c4 {[%emt 0:00:35]} f5 {[%emt 0:00:05]} 4. Nc3 {[%emt 0:00:13]} Nf6 {[%emt 0:00:02]} 5. g3 {[%emt 0:00:18]} Bg7 {[%emt 0:00:03]} 6. Bg2 {[%emt 0:00:20]} O-O {[%emt 0:00:03]} 7. O-O {[%emt 0:00:18]} c6 {[%emt 0:00:02]} 8. Rb1 {[%emt 0:00:56]} a5 {[%emt 0:00:11]} 9. Qb3 {[%emt 0:00:41]} Kh8 {[%emt 0:00:29]} 10. Rd1 {[%emt 0:00:40]} Na6 {[%emt 0:01:20]} 11. Bg5 {[%emt 0:11:02]} Ne4 {[%emt 0:09:31]} 12. Be3 {[%emt 0:02:37]} Nf6 {[%emt 0:24:16]} 13. h3 {[%emt 0:02:11]} Rb8 {[%emt 0:12:27]} 14. d5 {[%emt 0:10:02]} cxd5 {[%emt 0:03:15]} 15. cxd5 {[%emt 0:00:34]} b5 {[%emt 0:01:11]} 16. Nxb5 {[%emt 0:04:12]} Bd7 {[%emt 0:14:50]} 17. a4 {[%emt 0:01:57]} Ne4 {[%emt 0:04:19]} 18. Nfd4 {[%emt 0:07:18]} Nac5 {[%emt 0:00:14]} 19. Qc4 {[%emt 0:03:32]} Qe8 {[%emt 0:04:27]} 20. b3 {[%emt 0:07:27]} Qf7 {[%emt 0:03:33]} 21. Na7 {[%emt 0:11:21]} g5 {[%emt 0:08:38]} 22. Ndc6 {[%emt 0:10:28]} f4 {[%emt 0:05:41]} 23. gxf4 {[%emt 0:01:44]} gxf4 {[%emt 0:00:37]} 24. Bxc5 {[%emt 0:01:08]} Nxc5 {[%emt 0:00:16]} 25. Nxb8 {[%emt 0:02:39]} Rxb8 {[%emt 0:00:02]} 26. b4 {[%emt 0:05:22]} Qg6 {[%emt 0:02:14]} 27. Kh1 {[%emt 0:04:08]} Bf5 {[%emt 0:03:53]} 28. Nc6 {[%emt 0:02:46]} Re8 {[%emt 0:00:20]} 29. Rbc1 {[%emt 0:02:22]} axb4 {[%emt 0:00:04]} 30. Qxb4 {[%emt 0:03:01]} Qh5 {[%emt 0:00:18]} 31. Kh2 {[%emt 0:01:05]} Bf6 {[%emt 0:01:22]} 32. Qxf4 {[%emt 0:01:22]} Ne4 {[%emt 0:00:30]} 33. Qf3 {[%emt 0:01:44]} Qg6 {[%emt 0:00:01]} 34. Nd4 {[%emt 0:01:26]} Be5+ {[%emt 0:00:59]} 35. Kh1 {[%emt 0:00:07]} Bxd4 {[%emt 0:00:30]} 36. Rxd4 {[%emt 0:00:13]} Ng5 {[%emt 0:00:29]} 37. Qc3 {[%emt 0:00:53]} Kg8 {[%emt 0:00:29]} 38. Rg1 {[%emt 0:00:33]} Qh6 {[%emt 0:00:32]} 39. Bf1 {[%emt 0:01:02]} Bg6 {[%emt 0:00:30]} 40. Qe3 {[%emt 0:00:00]} Nf7 {[%emt 0:00:29]} 41. Qxh6 {[%emt 0:01:35]} Nxh6 {[%emt 0:00:02]} 42. e4 {[%emt 0:01:17]} Rc8 {[%emt 0:01:14]} 43. Bc4 {[%emt 0:02:26]} Kf8 {[%emt 0:01:33]} 44. a5 {[%emt 0:00:49]} Ng8 {[%emt 0:00:26]} 45. a6 {[%emt 0:01:25]} Nf6 {[%emt 0:00:03]} 46. f3 {[%emt 0:00:28]} Nd7 {[%emt 0:00:14]} 47. a7 {[%emt 0:02:03]} Nb6 {[%emt 0:00:55]} 48. Rb1 {[%emt 0:00:21]} Rc7 {[%emt 0:01:05]} 49. Rxb6 {[%emt 0:00:27]} Rxa7 {[%emt 0:00:02]} 50. Ba6 {[%emt 0:00:33]} 1-0

[Event "36th Balaton IM 2018"]
[Site "Balatonlelle"]
[Date "2018.06.15"]
[Round "4"]
[White "Gungl, Theo"]
[Black "Urh, Zala"]
[Result "1-0"]
[ECO "C67"]
[WhiteElo "2237"]
[BlackElo "2248"]
[Annotator "NA"]
[PlyCount "61"]
[EventDate "2018.06.12"]
[EventType "swiss"]
[EventCountry "HUN"]
[SourceTitle "playchess.com"]
[Source "ChessBase"]
[SourceQuality "1"]
[TimeControl "40/5400+30:1800+30"]

1. e4 {[%emt 0:00:02]} e5 {[%emt 0:01:45]} 2. Nf3 {[%emt 0:00:03]} Nc6 {[%emt 0:00:18]} 3. Bb5 {[%emt 0:00:07]} Nf6 {[%emt 0:00:26]} 4. O-O {[%emt 0:03:07]} Nxe4 {[%emt 0:00:41]} 5. d4 {[%emt 0:00:08]} Nd6 {[%emt 0:00:56]} 6. Bxc6 {[%emt 0:00:06]} dxc6 {[%emt 0:00:26]} 7. dxe5 {[%emt 0:00:06]} Nf5 {[%emt 0:00:45]} 8. Qxd8+ {[%emt 0:00:07]} Kxd8 {[%emt 0:00:08]} 9. h3 {[%emt 0:00:56]} h5 {[%emt 0:03:02]} 10. Nc3 {[%emt 0:00:19]} Ke8 {[%emt 0:01:07]} 11. Bf4 {[%emt 0:00:51]} Be6 {[%emt 0:06:29]} 12. Rad1 {[%emt 0:01:12]} Bb4 {[%emt 0:03:17]} 13. a3 {[%emt 0:18:49]} Be7 {[%emt 0:07:18]} 14. Ng5 {[%emt 0:00:42]} Bc4 {[%emt 0:11:12]} 15. Rfe1 {[%emt 0:00:11]} Rh6 {[%emt 0:11:05]} 16. Re4 {[%emt 0:10:53]} Ba6 {[%emt 0:05:25]} 17. e6 {[%emt 0:06:13]} Bxg5 {[%emt 0:07:04]} 18. exf7+ {[%emt 0:00:11]} Kxf7 {[%emt 0:00:14]} 19. Bxg5 {[%emt 0:06:28]} Rd6 {[%emt 0:00:21]} 20. Rde1 {[%emt 0:01:47]} Rf8 {[%emt 0:04:44]} 21. Be7 {[%emt 0:07:50]} Nxe7 {[%emt 0:03:53]} 22. Rxe7+ {[%emt 0:00:02]} Kg6 {[%emt 0:00:39]} 23. Rxc7 {[%emt 0:02:19]} Rd2 {[%emt 0:02:50]} 24. Re6+ {[%emt 0:02:19]} Kf5 {[%emt 0:04:34]} 25. Re3 {[%emt 0:01:45]} Rg8 {[%emt 0:03:09]} 26. Ne4 {[%emt 0:02:33]} Rxc2 {[%emt 0:06:08]} 27. Ng3+ {[%emt 0:00:25]} Kg6 {[%emt 0:00:00]} 28. Re6+ {[%emt 0:00:26]} Kg5 {[%emt 0:03:17]} 29. f4+ {[%emt 0:02:50]} Kxf4 {[%emt 0:01:34]} 30. Rf7+ {[%emt 0:00:15]} Kg5 {[%emt 0:01:51]} 31. Ne4+ {[%emt 0:00:10]} 1-0

[Event "36th Balaton IM 2018"]
[Site "Balatonlelle"]
[Date "2018.06.15"]
[Round "4"]
[White "Moksh Amit Doshi"]
[Black "McPhillips, Joseph"]
[Result "0-1"]
[ECO "B42"]
[WhiteElo "2203"]
[BlackElo "2399"]
[Annotator "NA"]
[PlyCount "62"]
[EventDate "2018.06.12"]
[EventType "swiss"]
[EventCountry "HUN"]
[SourceTitle "playchess.com"]
[Source "ChessBase"]
[SourceQuality "1"]
[TimeControl "40/5400+30:1800+30"]

1. d4 {[%emt 0:00:20]} e6 {[%emt 0:00:40]} 2. Nf3 {[%emt 0:00:28]} c5 {[%emt 0:00:12]} 3. e4 {[%emt 0:02:21]} cxd4 {[%emt 0:00:54]} 4. Nxd4 {[%emt 0:00:06]} a6 {[%emt 0:00:11]} 5. Bd3 {[%emt 0:00:37]} Bc5 {[%emt 0:01:55]} 6. Nb3 {[%emt 0:00:09]} Be7 {[%emt 0:01:01]} 7. Qg4 {[%emt 0:03:21]} g6 {[%emt 0:04:00]} 8. Qe2 {[%emt 0:00:07]} d6 {[%emt 0:00:35]} 9. Nc3 {[%emt 0:00:07]} Nd7 {[%emt 0:01:09]} 10. Bd2 {[%emt 0:04:54]} Qc7 {[%emt 0:00:14]} 11. f4 {[%emt 0:02:57]} Ngf6 {[%emt 0:01:18]} 12. O-O {[%emt 0:03:53]} b6 {[%emt 0:00:46]} 13. Rae1 {[%emt 0:02:47]} Bb7 {[%emt 0:00:05]} 14. e5 {[%emt 0:07:19]} Nd5 {[%emt 0:03:33]} 15. Ne4 {[%emt 0:08:43]} dxe5 {[%emt 0:00:41]} 16. fxe5 {[%emt 0:00:09]} O-O {[%emt 0:00:20]} 17. c4 {[%emt 0:14:18]} Nb4 {[%emt 0:00:20]} 18. Bb1 {[%emt 0:06:28]} Rac8 {[%emt 0:01:06]} 19. Rf4 {[%emt 0:06:08]} Qxe5 {[%emt 0:18:17]} 20. Bxb4 {[%emt 0:05:18]} Bxb4 {[%emt 0:01:30]} 21. Nf6+ {[%emt 0:00:26]} Kg7 {[%emt 0:00:13]} 22. Qxe5 {[%emt 0:14:29]} Nxe5 {[%emt 0:00:27]} 23. Rxe5 {[%emt 0:00:45]} Bd6 {[%emt 0:00:17]} 24. Ng4 {[%emt 0:00:49]} f6 {[%emt 0:08:54]} 25. Rxe6 {[%emt 0:05:29]} Bxf4 {[%emt 0:00:55]} 26. Rxb6 {[%emt 0:00:09]} Rf7 {[%emt 0:01:48]} 27. Nd4 {[%emt 0:03:29]} Bb8 {[%emt 0:04:04]} 28. Ne6+ {[%emt 0:02:28]} Kh8 {[%emt 0:00:07]} 29. c5 {[%emt 0:01:01]} f5 {[%emt 0:05:38]} 30. Ne3 {[%emt 0:01:04]} Re7 {[%emt 0:04:01]} 31. Bd3 {[%emt 0:00:55]} Ba7 {[%emt 0:07:05]} 0-1